Cogmind - Beta 16 --- EXPLORER MODE // 2025.12.05 @ 09:45:24 Player: K.K.Y. Result: Destroyed by P-70 Sage with Tesla Rifle Performance ------------- Evolutions (5) 2500 Regions Visited (6) 1200 Robots Destroyed (111) 555 Value Destroyed (2932) 2932 Prototype IDs (12) 240 Alien Tech Used (0) 0 Bonus (409) 409 TOTAL SCORE: 7836 Bonus ------- Follower Combat Kills 409 Cogmind --------- Core Integrity 0/1000 Matter 287/300 Energy 275/275 System Corruption 0% Temperature Cool (27) Movement Walking (400) Ox4 Location -5/Factory Parts ------- > --- POWER (2) -------- Deuterium Engine > --- PROPULSION (4) --- Flexi-carbon Leg > --- UTILITY (9) ------ Advanced Coolant Injector Huge Storage Unit Machine Analyzer Enhanced Optical Array Terrain Scan Processor Advanced Melee Analysis Suite > --- WEAPON (3) ------- Plasma Rifle Gauss Rifle > --- INVENTORY (25) --- Light Nuclear Core Improved Deuterium Engine Light Angular Momentum Engine Huge Storage Unit Light Humpback Transmission Jammer Shock Absorption System System Restoration Module Recalibrator Datajack Improved Remote Datajack Plasma Cutter Peak State ------------ > --- POWER ------------ Deuterium Engine > --- PROPULSION ------- Flexi-carbon Leg Flexi-carbon Leg Advanced VSS Leg > --- UTILITY ---------- Advanced Coolant Injector Huge Storage Unit Machine Analyzer Enhanced Optical Array Terrain Scan Processor Advanced Melee Analysis Suite Jamming Amplifier > --- WEAPON ----------- Gatling Laser Gauss Rifle > --- INVENTORY -------- Light Nuclear Core Improved Deuterium Engine Light Angular Momentum Engine Huge Storage Unit Light Humpback Transmission Jammer Shock Absorption System System Restoration Module Recalibrator Plasma Rifle Datajack Improved Remote Datajack Plasma Cutter [Rating: 60] Favorites ----------- Power Improved Deuterium Engine Engine Improved Deuterium Engine Power Core Light Nuclear Core Propulsion Spiked Treads Treads Spiked Treads Leg Advanced VSS Leg Wheel Wheel Utility Terrain Scan Processor Device Structural Scanner Storage Huge Storage Unit Processor Terrain Scan Processor Hackware Hacking Suite Protection Hardened Heavy Armor Plating Weapon Greatsword Energy Gun Particle Gun Energy Cannon Plasma Cannon Ballistic Gun Assault Rifle Ballistic Cannon Gauss Cannon Special Weapon Mining Laser Impact Weapon Power Maul Slashing Weapon Greatsword Build | -11 -10 -10 -10 -7 -7 -5 ------- Run | Yrd Mat Min Sub Rec Scr Fac Slots Evolved 11 | . 1 . . . . 10 Power 1 | . . . . . . 1 Propulsion 2 | . . . . . . 2 Utility 7 | . 1 . . . . 6 Weapon 1 | . . . . . . 1 Parts Attached 66 | . 8 . 14 6 2 36 Power 8 | . 1 . 3 2 . 2 Engine 5 | . 1 . 2 2 . . Core 3 | . . . 1 . . 2 Reactor . | . . . . . . . Propulsion 15 | . 2 . 2 2 2 7 Treads 10 | . 2 . 2 2 2 2 Leg 4 | . . . . . . 4 Wheel 1 | . . . . . . 1 Hover . | . . . . . . . Flight . | . . . . . . . Utility 20 | . 3 . 1 1 . 15 Device 7 | . 1 . 1 . . 5 Storage 2 | . . . . 1 . 1 Processor 8 | . 2 . . . . 6 Hackware 2 | . . . . . . 2 Protection 1 | . . . . . . 1 Artifact . | . . . . . . . Weapon 23 | . 2 . 8 1 . 12 Energy Gun 4 | . . . 2 . . 2 Energy Cannon 1 | . . . . . . 1 Ballistic Gun 10 | . 2 . 4 . . 4 Ballistic Cannon 2 | . . . . . . 2 Launcher . | . . . . . . . Special Weapon 1 | . . . 1 . . . Impact Weapon 1 | . . . . . . 1 Slashing Weapon 4 | . . . 1 1 . 2 Piercing Weapon . | . . . . . . . Special Melee Weapon . | . . . . . . . Unidentified Prototypes . | . . . . . . . Parts Lost 38 | . . . 5 . . 33 Power 4 | . . . 1 . . 3 Propulsion 9 | . . . . . . 9 Utility 11 | . . . 1 . . 10 Weapon 14 | . . . 3 . . 11 Highest Loss Streak 16 | . . . 1 . . 16 To Critical Strikes . | . . . . . . . Average Backups 8 | 2 3 5 4 6 22 19 Power . | . . 1 . . 1 2 Propulsion . | 1 . . . . 2 . Utility 4 | . 2 3 3 3 9 9 Weapon 2 | 1 . 1 1 1 7 4 Tool/Special . | . . . . . . . Unused Backups 16 | . . . 1 1 3 11 Power 6 | . . . 1 1 1 3 Propulsion . | . . . . . . . Utility 5 | . . . . . . 5 Weapon 2 | . . . . . 2 . Tool/Special 3 | . . . . . . 3 Average Slot Usage (%) 86 | . 79 100 90 87 87 64 Engine 9 | . 12 12 7 12 12 3 Treads 23 | . 24 25 25 25 25 12 Device 9 | . 1 12 8 12 12 7 Storage 3 | . . . . 5 12 5 Processor 19 | . 16 25 25 18 12 12 Ballistic Gun 7 | . 24 25 11 . . 1 Slashing Weapon 8 | . . . 7 12 12 1 Peak Build Rating 60 | . 12 12 22 29 32 60 Average Rating 22 | . 8 12 16 22 30 47 On Entrance 14 | . . 12 12 14 29 32 Avg Prop Armor Cover (%) . | . . . . . . . Naked Turns . | . . . . . . . Heaviest Build 122 | . 10 10 15 96 96 122 Greatest Support 112 | 3 40 40 40 51 56 112 Greatest Overweight (x) 36 | . . . . 1 1 36 Average Overweight (x) . | . . . . . 1 . Largest Inventory Capacity 25 | 5 5 5 5 25 25 25 Average Capacity 12 | 5 5 5 5 14 25 25 Most Carried 25 | 5 5 5 5 22 25 25 Average Carried 9 | 2 3 5 4 7 24 21 Final Capacity 25 | 5 5 5 5 25 25 25 Final Carried 25 | 5 5 5 5 22 25 13 Class Distribution -------------------- 61% | Hacker-Mutant 29% | Commander-Mutant 7% | Scavenger-Mutant Dominant Class ---------------- Hacker-Mutant | -10/Materials Hacker-Mutant | -10/Mines Hacker-Mutant | -10/Subcaves Commander-Mutant | -7/Recycling Commander-Mutant | -7/Scraptown Hacker-Mutant | -5/Factory Resources | -11 -10 -10 -10 -7 -7 -5 ----------- Run | Yrd Mat Min Sub Rec Scr Fac Matter Collected 2173 | 86 410 54 470 120 20 1013 Remotely . | . . . . . . . Salvage Created 5225 | . 603 126 777 1870 . 1849 Parts 232 | . 48 6 49 58 . 71 Haulers Intercepted 2 | . 2 . . . . . Recyclers Shooed 6 | . . . . 2 . 4 Parts Field Recycled . | . . . . . . . Retrieved Matter . | . . . . . . . Parts Self-Destructed . | . . . . . . . Prevented . | . . . . . . . Parts Restored . | . . . . . . . Kills | -11 -10 -10 -10 -7 -7 -5 ------- Run | Yrd Mat Min Sub Rec Scr Fac Combat Hostiles Destroyed 60 | . 6 2 20 5 . 27 Melee 15 | . . . 8 5 . 2 Guns 28 | . 6 2 11 . . 9 Cannons 17 | . . . 1 . . 16 Classes Destroyed 18 | . 8 . 3 1 . 6 Worker 4 | . . . . . . 4 Builder 5 | . 4 . . . . 1 Tunneler 2 | . 1 1 . . . . Hauler 2 | . 2 . . . . . Recycler 28 | . 1 1 . 19 . 7 Mechanic 2 | . 1 . . . . 1 Turret 2 | . . . 2 . . . Watcher 5 | . 3 . . . . 2 Swarmer 18 | . 2 2 4 . . 10 Grunt 11 | . 4 . 1 1 . 5 Brawler 1 | . . . . . . 1 Duelist 1 | . . . . . . 1 Protector 1 | . . . . 1 . . Sentry 4 | . . . 1 3 . . Specialist 1 | . . . . . . 1 Hunter 4 | . . . . . . 4 Programmer 5 | . . . . . . 5 Subdweller 15 | . . . 15 . . . Best Kill Streak 9 | . 5 2 4 9 . 7 Combat Bots Only 4 | . 2 2 4 2 . 4 Max Kills in Single Turn 2 | . 1 1 2 1 . 1 Gunslinging . | . . . . . . . Exploded . | . . . . . . . Melee 1 | . . . 1 1 . 1 Uniques/NPCs Destroyed . | . . . . . . . Combat | -11 -10 -10 -10 -7 -7 -5 -------- Run | Yrd Mat Min Sub Rec Scr Fac Hostile Shots Fired 847 | . 29 9 172 30 . 607 Missed 235 | . 7 1 55 10 . 162 Hits 612 | . 22 8 117 20 . 445 Melee 5 | . . . . . . 5 Projectile 607 | . 22 8 117 20 . 440 AOE 2 | . . . 2 . . . Critical Strikes 5 | . . . 1 . . 4 Damage Taken 5468 | . 161 34 1062 74 . 4137 Core 1229 | . 20 5 190 13 . 1001 Absorbed by Shields 100 | . . . . . . 100 Ignored by Resistances 3457 | . 106 28 660 59 . 2604 Core Remaining (%) 54 | 100 . . . . 8 . Volleys Fired 236 | . 36 9 72 . . 119 Largest 2 | . 2 2 2 . . 2 Hottest 125 | . 40 40 125 . . 113 Shots Fired 412 | . 72 18 136 . . 186 Gun 288 | . 72 18 116 . . 82 Cannon 104 | . . . . . . 104 Launcher . | . . . . . . . Special 20 | . . . 20 . . . Kinetic 324 | . 72 18 92 . . 142 Thermal 88 | . . . 44 . . 44 Explosive . | . . . . . . . Electromagnetic . | . . . . . . . Robot Hit Streak 64 | . 14 6 31 . . 64 Robot Miss Streak 5 | . 2 1 1 . . 5 Penetration Max 1 | . . . . . . 1 Secondary Targets 6 | . 1 . 4 . . 1 Max Gunslinging Chain 1 | . 1 . 1 . . 1 Shots Hit Robots 372 | . 53 12 94 32 . 181 Core Hits 220 | . 27 5 39 16 . 133 Critical Kills 2 | . . . 1 . . 1 Critical Parts Destroyed 3 | . . 1 . . . 2 Critical Strikes 13 | . . 1 1 1 . 10 Destroy 5 | . . 1 1 . . 3 Blast 5 | . . . . . . 5 Sever 3 | . . . . 1 . 2 Melee Attacks 126 | . . . 82 32 . 12 Impact . | . . . . . . . Slashing 126 | . . . 82 32 . 12 Piercing . | . . . . . . . Sneak Attacks 25 | . . . 2 23 . . Combat Hostiles 1 | . . . 1 . . . Follow-up Attacks . | . . . . . . . Damage Inflicted 10653 | . 666 138 1968 3010 . 4871 Guns 3878 | . 666 138 1281 . . 1793 Cannons 2483 | . . . . . . 2483 Explosions . | . . . . . . . Melee 4211 | . . . 615 3010 . 586 Ramming 9 | . . . . . . 9 Kinetic 4845 | . 666 138 931 . . 3110 Thermal 1588 | . . . 422 . . 1166 Explosive . | . . . . . . . Electromagnetic . | . . . . . . . Impact . | . . . . . . . Slashing 4211 | . . . 615 3010 . 586 Piercing . | . . . . . . . Highest Corruption 3 | . . . . . . 3 Average Corruption 2 | . . . . . . 2 Corruption Purged 3 | . . . . . . 3 Corruption Blocked . | . . . . . . . Effects 11 | . . . . . . 11 Matter Fused 6 | . . . . . . 6 Heat Flow Errors 2 | . . . . . . 2 Data Loss (minor) 1 | . . . . . . 1 Misfires 1 | . . . . . . 1 Weapon Failures 1 | . . . . . . 1 Overload Shots . | . . . . . . . Overflow Damage 880 | . . . . 842 . 38 Projectiles 18 | . . . . . . 18 Explosions . | . . . . . . . Melee 862 | . . . . 842 . 20 Knockbacks 31 | . . . . . . 31 Impact . | . . . . . . . Kinetic 27 | . . . . . . 27 Secondary 4 | . . . . . . 4 Self-Inflicted Damage 1 | . . . . . . 1 Shots . | . . . . . . . Rammed 1 | . . . . . . 1 Targets Rammed 2 | . . . . . . 2 Kicked 1 | . . . . . . 1 Crushed . | . . . . . . . Highest Temperature 495 | . 2 . 46 . . 495 Average Temperature 76 | . 2 . 15 . . 87 Received Heat Transfer 2337 | . 132 . 543 24 . 1638 Effects 4 | . . . . . . 4 Shutdowns 2 | . . . . . . 2 Damage (major) 2 | . . . . . . 2 Siege Activations . | . . . . . . . Martial Activations . | . . . . . . . Shielding Activations . | . . . . . . . Robots Disrupted . | . . . . . . . Combat Hostiles . | . . . . . . . Robots Corrupted . | . . . . . . . Combat Hostiles . | . . . . . . . Parts Fried . | . . . . . . . Impact Corruptions . | . . . . . . . Robots Melted . | . . . . . . . Combat Hostiles . | . . . . . . . Parts Melted 4 | . . . 1 . . 3 Heat Transferred 3045 | . . . 794 . . 2251 Parts Sabotaged . | . . . . . . . Parts Stolen . | . . . . . . . Parts Stripped . | . . . . . . . Power Chain Reactions . | . . . . . . . Alert | -11 -10 -10 -10 -7 -7 -5 ------- Run | Yrd Mat Min Sub Rec Scr Fac Maximum Alert Level . | . . . . . . . Low Security (%) 100 | 100 100 100 . 100 . 100 Level 1 . | . . . . . . . Level 2 . | . . . . . . . Level 3 . | . . . . . . . Level 4 . | . . . . . . . Level 5 . | . . . . . . . High Security . | . . . . . . . Max Security . | . . . . . . . Peak Influence 158 | . 64 50 . 44 . 158 Initial . | . . . . . . . Average 7 | . 14 1 . . . 31 Influence Increases 1880 | . 277 60 344 242 . 957 Destroy 0b10 Robot/C 1080 | . 120 40 180 80 . 660 Destroy 0b10 Robot/NC 260 | . 60 10 . 115 . 75 Destroy Leader 174 | . 40 10 10 . . 114 Allied During Kill 11 | . . . 4 . . 7 Successful Hack 62 | . 11 . . 47 . 4 Disable Machine 8 | . . . . . . 8 Destroy Structure 75 | . 1 . . . . 74 Lose Combat Pursuer 210 | . 45 . 150 . . 15 Influence Decreases 1880 | . 277 60 344 242 . 957 Time Decay 1618 | . 277 60 317 242 . 722 Lost Part 225 | . . . 20 . . 205 Lost Ally 37 | . . . 7 . . 30 Squads Dispatched 6 | . . . . . . 6 Investigation . | . . . . . . . Extermination 3 | . . . . . . 3 Reinforcement . | . . . . . . . Assault . | . . . . . . . Garrison 3 | . . . . . . 3 Intercept . | . . . . . . . Searches Triggered . | . . . . . . . Construction Impeded . | . . . . . . . Haulers Reinforced . | . . . . . . . Active Scanning Responses . | . . . . . . . Cargo Convoy Interrupts 1 | . . . . . . 1 Stealth | -11 -10 -10 -10 -7 -7 -5 --------- Run | Yrd Mat Min Sub Rec Scr Fac Distress Signals 6 | . 2 . . . . 4 Communications Jammed . | . . . . . . . Distress Signals . | . . . . . . . Times Spotted 107 | . 11 2 36 3 . 55 Peak Tracking Total 6 | . 3 2 6 1 . 6 Tactical Retreats 6 | . 2 . 3 . . 1 Traps | -11 -10 -10 -10 -7 -7 -5 ------- Run | Yrd Mat Min Sub Rec Scr Fac Traps Triggered 1 | . . . . . . 1 Indirectly . | . . . . . . . Trap Hack Attempts . | . . . . . . . Triggered . | . . . . . . . Disarmed . | . . . . . . . Reprogrammed . | . . . . . . . Reused . | . . . . . . . Traps Extracted . | . . . . . . . Installed . | . . . . . . . Triggered . | . . . . . . . Machines | -11 -10 -10 -10 -7 -7 -5 ---------- Run | Yrd Mat Min Sub Rec Scr Fac Machines Disabled 4 | . . . 2 . . 2 Max in Single Turn 1 | . . . 1 . . 1 Machines Repaired . | . . . . . . . Machines Dismantled . | . . . . . . . Machines Sabotaged . | . . . . . . . Overloaded Fab Kills . | . . . . . . . Hacking | -11 -10 -10 -10 -7 -7 -5 --------- Run | Yrd Mat Min Sub Rec Scr Fac Machines Accessed 18 | . 2 . 2 11 . 3 Terminals 9 | . 2 . . 6 . 1 Fabricators . | . . . . . . . Repair Stations 1 | . . . . . . 1 Recycling Units 5 | . . . . 5 . . Scanalyzers 1 | . . . . . . 1 Garrison Access . | . . . . . . . Total Hacks 34 | . 2 . 5 22 . 5 Successful 32 | . 2 . 5 20 . 5 Failed 2 | . . . . 2 . . Catastrophic . | . . . . . . . Database Lockouts . | . . . . . . . Manual 19 | . 2 . . 15 . 2 Terminals 14 | . 2 . . 10 . 2 Fabricators . | . . . . . . . Repair Stations 1 | . . . . . . 1 Recycling Units 12 | . . . . 12 . . Scanalyzers 2 | . . . . . . 2 Garrison Access . | . . . . . . . Terminal Hacks 9 | . . . 5 3 . 1 Record 4 | . . . 4 . . . Part Schematic 2 | . . . . 2 . . Robot Analysis 1 | . . . . 1 . . Hauler Manifests 1 | . . . . . . 1 Proto ID Catalog 1 | . . . 1 . . . Fabricator Hacks . | . . . . . . . Repair Station Hacks . | . . . . . . . Recycling Unit Hacks 5 | . . . . 5 . . Retrieve Components 5 | . . . . 5 . . Scanalyzer 2 | . . . . . . 2 Insert Component 1 | . . . . . . 1 Analyze 1 | . . . . . . 1 Garrison Access Hacks . | . . . . . . . Unauthorized Hacks 15 | . 2 . . 11 . 2 Terminals 8 | . 2 . . 5 . 1 Botnet 8 | . 2 . . 5 . 1 Fabricators . | . . . . . . . Repair Stations 1 | . . . . . . 1 Mechanics 1 | . . . . . . 1 Recycling Units 6 | . . . . 6 . . Reject 4 | . . . . 4 . . Recyclers 2 | . . . . 2 . . Scanalyzers . | . . . . . . . Garrison Access . | . . . . . . . Data Cores Recovered . | . . . . . . . Used . | . . . . . . . Hacking Detections 10 | . . . . 8 . 2 Full Trace Events 3 | . . . . 3 . . Feedback Events . | . . . . . . . Feedback Blocked . | . . . . . . . Robot Schematics Acquired . | . . . . . . . Robots Built . | . . . . . . . Authchips . | . . . . . . . Time . | . . . . . . . Total Robot Build Rating . | . . . . . . . Part Schematics Acquired 3 | . . . . 2 . 1 Parts Built . | . . . . . . . Authchips . | . . . . . . . Time . | . . . . . . . Total Part Build Rating . | . . . . . . . Part Studies Acquired . | . . . . . . . Parts Repaired . | . . . . . . . Time . | . . . . . . . Parts Recycled . | . . . . . . . Recycled Matter . | . . . . . . . Retrieved Matter . | . . . . . . . Retrieved Components 26 | . . . . 26 . . Parts Scanalyzed 1 | . . . . . . 1 Part Schematics Acquired 1 | . . . . . . 1 Parts Damaged . | . . . . . . . Bothacking | -11 -10 -10 -10 -7 -7 -5 ------------ Run | Yrd Mat Min Sub Rec Scr Fac Used RIF Installer . | . . . . . . . Robots Hacked . | . . . . . . . Non-combat . | . . . . . . . Combat . | . . . . . . . Robot Hacks Applied . | . . . . . . . Relay Couplers Released . | . . . . . . . Fabnet Peak Effective % . | . . . . . . . Robots Rewired 12 | . . . . 12 . . Allies Hacked . | . . . . . . . Hacks Repelled . | . . . . . . . Allies | -11 -10 -10 -10 -7 -7 -5 -------- Run | Yrd Mat Min Sub Rec Scr Fac Total Allies 17 | . . 5 . 12 . . Largest Group 12 | . . 5 5 12 12 12 Highest-Rated Group 228 | . . 83 87 228 228 228 Highest-Rated Ally 40 | . . 31 31 40 40 40 Total Orders . | . . . . . . . Ally Attacks 53 | . . . 31 . . 22 Total Damage 1958 | . . . 481 . . 1477 Kills 22 | . . . 7 . . 15 Allies Corrupted . | . . . . . . . Allies Melted . | . . . . . . . Intel | -11 -10 -10 -10 -7 -7 -5 ------- Run | Yrd Mat Min Sub Rec Scr Fac Active Infowar (turns) 13551 | . 72 845 4449 4932 1972 1281 Optics 138 | . . . . . . 138 Sensors 488 | . . . . . . 488 Terrain 3773 | . 72 845 2541 . . 315 Structural 9119 | . . . 1908 4932 1972 307 Machine Analysis 1195 | . . . . . . 1195 Robot Analysis Total 1 | . . . . 1 . . Derelict Logs Recovered 2 | . . 1 1 . . . Drone Launches . | . . . . . . . Drone Recoveries . | . . . . . . . Exploration | -11 -10 -10 -10 -7 -7 -5 ------------- Run | Yrd Mat Min Sub Rec Scr Fac Turns Passed 16057 | 23 804 845 5984 4932 1972 1497 Spaces Moved 6935 | 35 409 484 3143 1595 804 465 Core 40 | 35 . . . . . 5 Treads 6840 | . 409 484 3143 1595 804 405 Legs 53 | . . . . . . 53 Wheels 2 | . . . . . . 2 Hover . | . . . . . . . Flight . | . . . . . . . Fastest Speed 50 | 50 160 160 160 160 240 160 Average Speed 183 | 50 160 160 160 208 240 219 Slowest Speed 1850 | 50 160 160 160 240 240 1850 Overloaded Moves . | . . . . . . . Propulsion Burnouts . | . . . . . . . Robots Hopped . | . . . . . . . Potential Cave-ins . | . . . . . . . Cave-ins Triggered . | . . . . . . . Exploration Rate (%) 62 | 3 75 98 98 99 53 11 Regions Visited 6 Branch Regions 4 Pre-discovered Areas 1 | . . . 1 . . . Known Exits Taken 6 | 1 1 1 1 1 1 . Unknown Exits Taken . | . . . . . . . Scrap Searched 17 | . . . 13 . 4 . Spaces Dug 17 | . . . 17 . . . Terrain Destroyed 23 | . . . 17 . . 6 Melee 17 | . . . 17 . . . Projectile 6 | . . . . . . 6 AOE . | . . . . . . . Terrain Rammed . | . . . . . . . Walls Destroyed . | . . . . . . . Machines Disabled . | . . . . . . . Actions | -11 -10 -10 -10 -7 -7 -5 --------- Run | Yrd Mat Min Sub Rec Scr Fac Total 9629 | 39 486 537 3846 3145 851 725 Wait 2128 | . 28 45 521 1443 33 58 Move 6929 | 34 408 483 3142 1594 803 465 Hop . | . . . . . . . Pick Up 63 | 5 6 . 1 19 8 24 Fast Attach 9 | . 2 . 4 1 . 2 Attach 46 | . 6 . . 1 . 39 Detach 4 | . . . . . . 4 Swap 26 | . . . 14 10 2 . Drop 28 | . . . 10 13 5 . Fire 236 | . 36 9 72 . . 119 Melee 126 | . . . 82 32 . 12 Ram 1 | . . . . . . 1 Kick 1 | . . . . . . 1 Crush . | . . . . . . . Escape Stasis . | . . . . . . . Rewire 32 | . . . . 32 . . Trap . | . . . . . . . Miscellaneous . | . . . . . . . Route ------- -11/Scrapyard -10/Materials (discovered 3 exits: *Mat x2 / *Min) -10/Mines (discovered 3 exits: *Mat x2 / *Sub) -10/Subcaves (discovered 3 exits: *Mat x2 / *Rec) -7/Recycling (discovered 2 exits: *Fac / *Scr) -7/Scraptown -5/Factory (discovered 4 exits: Fac x3 / Upp) History --------- Turn | Location | Event 11 | -11/Scrapyard | Identified exit to Materials 11 | -11/Scrapyard | Discovered exit to Materials (range 16) 24 | -11/Scrapyard | Entered Materials 24 | -10/Materials | Evolved 1 slot: Utility x1 239 | -10/Materials | Identified exit to Materials 239 | -10/Materials | Discovered exit to Materials (range 14) 300 | -10/Materials | Build established: Hacker-Mutant 574 | -10/Materials | Discovered exit to Materials (range 15) 654 | -10/Materials | Identified exit to Mines 654 | -10/Materials | Discovered exit to Mines (range 15) 828 | -10/Materials | Entered Mines 854 | -10/Mines | Found a hidden stash of uninstalled traps 870 | -10/Mines | Discovered exit to Materials (range 9) 945 | -10/Mines | Learned Materials trap positions 961 | -10/Mines | Discovered exit to Materials (range 14) 1230 | -10/Mines | Identified exit to Subcaves 1230 | -10/Mines | Discovered exit to Subcaves (range 13) 1369 | -10/Mines | Deemed a non-threat by the Exiles lab entrance 1470 | -10/Mines | Assisted by bots powering up and referring to "LRC-V3" 1673 | -10/Mines | Entered Subcaves 1673 | -10/Subcaves | Accompanied by 5 allies 1674 | -10/Subcaves | Approached by a straggling Scientist 1678 | -10/Subcaves | Led the pair of lost Derelicts to an unsafe place 1882 | -10/Subcaves | Learned Materials emergency access door positions 2117 | -10/Subcaves | Build established: Scavenger-Mutant 2203 | -10/Subcaves | A Subdweller sparked back to life 2203 | -10/Subcaves | A Subdweller sparked back to life 2570 | -10/Subcaves | Shifting Twisted Machinery released Battle Rifle 2748 | -10/Subcaves | Shifting Twisted Machinery released Battle Rifle 2898 | -10/Subcaves | Core integrity fell below 50% 2940 | -10/Subcaves | A swath of the cavern ceiling suddenly collapsed 3198 | -10/Subcaves | Disturbed a concealed Subdweller 3303 | -10/Subcaves | Shifting Twisted Machinery released Battle Rifle 3331 | -10/Subcaves | Shifting Twisted Machinery released Sub. Laser 3333 | -10/Subcaves | Identified exit to Materials 3333 | -10/Subcaves | Discovered exit to Materials (range 8) 3380 | -10/Subcaves | Build established: Hacker-Mutant 3435 | -10/Subcaves | Visited 4L-MR0's lab 3586 | -10/Subcaves | Shifting Twisted Machinery released Mak. Axe 3619 | -10/Subcaves | Shifting Twisted Machinery released Sub. Beam Cannon 3943 | -10/Subcaves | Identified exit to Recycling 3943 | -10/Subcaves | Discovered exit to Recycling (range 15) 4280 | -10/Subcaves | Core integrity fell below 20% 5471 | -10/Subcaves | A swath of the cavern ceiling suddenly collapsed 6669 | -10/Subcaves | Discovered exit to Materials (range 14) 6737 | -10/Subcaves | Learned location of Zion (-6) 6737 | -10/Subcaves | Met a Zionite searching for "candidates" 7152 | -10/Subcaves | Visited Clippyterm 7156 | -10/Subcaves | Learned 40 Factory zone layouts 7156 | -10/Subcaves | Learned Factory stockpile data 7657 | -10/Subcaves | Entered Recycling 9546 | -7/Recycling | Identified exit to Factory 9546 | -7/Recycling | Discovered exit to Factory (range 6) 10366 | -7/Recycling | Build established: Commander-Mutant 10619 | -7/Recycling | Scanned before Scraplab entrance 12469 | -7/Recycling | Identified exit to Scraptown 12469 | -7/Recycling | Discovered exit to Scraptown (range 11) 12476 | -7/Recycling | Entered Scraplab 12589 | -7/Recycling | Entered Scraptown 12589 | -7/Scraptown | Accompanied by 12 allies 13063 | -7/Scraptown | Visited Comm Corps 13149 | -7/Scraptown | Visited Cyclists 13169 | -7/Scraptown | Visited Symbiants 13243 | -7/Scraptown | Visited IN-MT5's Study 13358 | -7/Scraptown | Visited Supply Room 13425 | -7/Scraptown | Visited Spacefarers 13509 | -7/Scraptown | Discovered exit to Factory (range 11) 14561 | -7/Scraptown | Entered Factory 14561 | -5/Factory | Accompanied by 12 allies 14561 | -5/Factory | Evolved 10 slots: Power x1, Propulsion x2, Utility x6, Weapon x1 14562 | -5/Factory | Identified exit to Factory 14562 | -5/Factory | Identified exit to Upper Caves 14911 | -5/Factory | Lost 10 allies 15093 | -5/Factory | Lost 3 parts (1n1u1w) 15159 | -5/Factory | Build established: Hacker-Mutant 15585 | -5/Factory | Lost 4 parts (1p1n1u1w) 15627 | -5/Factory | Cargo convoy interrupted 15702 | -5/Factory | Core integrity fell below 50% 15732 | -5/Factory | Core integrity fell below 20% 15766 | -5/Factory | Lost 16 parts (2p2n6u6w) 15775 | -5/Factory | Garrison activated, responded to threat 16058 | -5/Factory | Destroyed by P-70 Sage with Tesla Rifle Last Messages --------------- 16043_ R-10 Processor collects Lgt. Deuterium Engine. 16043_ K-01 Serf destroyed. 16044_ K-01 Serf collects debris. 16045_ Acquired 20 matter. 16046_ R-10 Processor collects Med. Storage Unit. 16049_ K-01 Serf collects debris. 16049_ R-10 Processor collects Imp. Ion Engine. 16050_ Acquired Gauss Rifle. 16051_ Gatling Laser destroyed. 16053_ K-01 Serf collects debris. 16053_ Jamming Amplifier destroyed. 16053_ Slug penetrates P-70 Sage. 16054_ R-10 Processor collects Com. Wheel. 16055_ Adv. VSS Leg destroyed. 16056_ K-01 Serf collects debris. 16056_ Carbon-fiber Leg destroyed. 16057_ M-28 Smith repairs G-50 Soldier. 16057_ R-10 Processor collects Wheel. Map ----- +----------------------------------------------------+ | # #???????????????###############??# # !%! | | # #???????????????# #?## # | | # #??????????????## """ """ """ #### # !! | | # #???????????????# """ """ """ #### # !! | | # #???????????????# """ """ """ + %+ | | ##+## #???????????????# # # | | ?# #???????????????# # %% # | | ?# #??#########################+## # | | ?# #??# #?# ! # ######### | | ?# #### #?# # ##?###??# | | ?# + ### *%%+%*! T###?#### | | ?# # ### !%[#% %= ###?##?# | | ?????? ??? ?? ? ? ?? # #= ####?#?## | | ? # """" """ ?## ! " #% #?#### | | ??? """" """ ?### """ # ##### ####?# | | ?#? """" """ ### S" #%% #?#?# ####?# | | ?+ ?"""" "" ### # %* ###?# ###### | | ?# """" ?""? ?########### = ##?## #?#### | | # ?"""" ???##?#######+##/##### ###?## | | #? ? #?#### % ### ###### | | ?# ?#####+#####?###?## """" """" + | | ?# ## ! #?####?# """"="""" ###### | | ?# = ######## """" """" #?#??# | | ?# !% p % # """" """" ####?# | | ?# T p # """" """" ######+### | | ?# % =% % @%+ """" """" # ## | | ?# %k%g % # # #? | | # % R m g # # #? | | ?# % =######## # """" ## | | ########## == ##?##### # """" # | | ???#?#?#?#### ####??#### # """" + | | ??###?#???### % %#?#?#???############### """" # | | ?##??#?##?#?# #?##?###?###?## # """" ## | | ????#?####### ########?#?#### # """" #? | | ##?##?#???## ###?#?####??#?# # """" #? | | ????#??#?#### ###?###??###### """# #? | | ????#???#?### %##?????#####??# """########## | | ## # ##??#?##?##???# """#???# | | ### # ####??#??#?#??# ""#???# ### | | ??# # ############### ""##### #?? | | ??# """ + # """T""" ## ## #?? | | ??# """"" # # """ """ ## ## #?? | | ??# """"" # ^^ # ########+## #?# | | ??# # ^^ # """ """ + #?# | | ??# # # """ """ # ### | | ??########### # """ """ # "" + | | ??# ## + + F" ### | | ??# ## # """ """ ###### " #?# | | ??# ## # """ """ #????# "" #?# | | ??# ## # """ """ #????# #?# | +----------------------------------------------------+ Best States ------------- Heat Dissipation 40 Coolant Potential 100 Energy Generation 25 Energy Capacity 350 Matter Stores 300 Matter Capacity 300 Sight Range 22 Robot Scan Range 15 Terrain Scan Range 16 Terrain Scan Density 160 EM Shielding 2 Armor Coverage 600 Resistance: KI 35 Resistance: TH 35 Resistance: EX 35 Resistance: EM 35 Resistance: I 35 Resistance: S 35 Resistance: P 35 Evasion (%) 50 Melee Accuracy 14 Recoil Reduction 4 Offensive Hacking 40 Item Schematics ----------------- Variable Charge Gun | -7/Recycling | Hacked Imp. Carbon-fiber Leg | -7/Recycling | Hacked Lgt. Humpback | -5/Factory | Scanalyzed Robot Schematics ------------------ None Fabricated ------------ Nothing Repaired ---------- Nothing Studied --------- None Alien Tech Used ----------------- None Achievements -------------- None Challenges ------------ None Game ------ Seed WeaponsTachyonMegatreads Manual? 0 Play Time 01:04:45 Cumulative 169.7 hours Start 2025.12.04 @ 17:01:11 End 2025.12.05 @ 09:45:24 Sessions 3 Manual Loads 0 Difficulty Explorer Special Mode None Game No. 230 Rogue 0 Adventurer 0 Explorer 230 Win Type - Total 0 Types 0/0/0/0/0/0/0/0/0/0 Lore% 70 Gallery% 67 Achievement% 52 Wizard Run 0 Options --------- Layout 1 ASCII 0 Keyboard 0 Movement Mouse Keybinds 0 Fullscreen 1 Font 24/Smallcaps Map View 50x35 Zoom Use 0% Tactical HUD 1 Map Filters NONE Filters NONE Steam 1 RUN: 12ce0996-5b87-49bf-9466-7690059ce1cd